[Event "Late-Titled-Tuesday-Blitz-September-19-2023"]
[Site "Chess.com"]
[Date "2023.09.19"]
[Round "5"]
[White "andrzej"]
[Black "Maksimus1998"]
[Result "1-0"]
[WhiteElo "2477"]
[BlackElo "2576"]
[TimeControl "180+1"]
[EndTime "14:57:02 PDT"]
[Termination "andrzej won by resignation"]

1. e4 {[%clk 0:02:50.2]} 1... c5 {[%clk 0:02:59.5]} 2. Nf3 {[%clk 0:02:50.1]}
2... a6 {[%clk 0:03:00.1]} 3. c4 {[%clk 0:02:49.9]} 3... Nc6 {[%clk 0:02:58.4]}
4. d4 {[%clk 0:02:49.4]} 4... cxd4 {[%clk 0:02:58.2]} 5. Nxd4 {[%clk 0:02:50.3]}
5... e6 {[%clk 0:02:55]} 6. Be2 {[%clk 0:02:46.4]} 6... Qc7 {[%clk 0:02:54.8]}
7. O-O {[%clk 0:02:45.5]} 7... b6 {[%clk 0:02:54.2]} 8. Nc3 {[%clk 0:02:44.8]}
8... Bb7 {[%clk 0:02:54.1]} 9. Be3 {[%clk 0:02:43.4]} 9... Nf6 {[%clk
0:02:49.7]} 10. f3 {[%clk 0:02:42.6]} 10... Bd6 {[%clk 0:02:45.3]} 11. f4 {[%clk
0:02:33.8]} 11... Nxd4 {[%clk 0:02:37.1]} 12. Bxd4 {[%clk 0:02:32]} 12... Nxe4
{[%clk 0:02:37]} 13. Nxe4 {[%clk 0:02:05.9]} 13... Bxe4 {[%clk 0:02:37.9]} 14.
Bf3 {[%clk 0:02:06.3]} 14... Bxf3 {[%clk 0:02:34.4]} 15. Qxf3 {[%clk 0:02:06.3]}
15... O-O {[%clk 0:02:32.2]} 16. Rac1 {[%clk 0:01:51.9]} 16... Bc5 {[%clk
0:02:28.1]} 17. Bxc5 {[%clk 0:01:50.1]} 17... Qxc5+ {[%clk 0:02:28.6]} 18. Kh1
{[%clk 0:01:50.4]} 18... b5 {[%clk 0:02:21.5]} 19. cxb5 {[%clk 0:01:36.3]} 19...
Qxb5 {[%clk 0:02:22.4]} 20. b3 {[%clk 0:01:27.3]} 20... a5 {[%clk 0:02:15.5]}
21. f5 {[%clk 0:01:20.7]} 21... exf5 {[%clk 0:01:58.5]} 22. Qxf5 {[%clk
0:01:19.5]} 22... Qxf5 {[%clk 0:01:59.1]} 23. Rxf5 {[%clk 0:01:20.2]} 23... a4
{[%clk 0:02:00]} 24. Rd5 {[%clk 0:01:14.2]} 24... axb3 {[%clk 0:01:55.1]} 25.
axb3 {[%clk 0:01:14]} 25... Ra7 {[%clk 0:01:55.5]} 26. Rcd1 {[%clk 0:01:12.9]}
26... Rd8 {[%clk 0:01:55.2]} 27. b4 {[%clk 0:01:12.9]} 27... Kf8 {[%clk
0:01:54.3]} 28. b5 {[%clk 0:01:12.9]} 28... Rb7 {[%clk 0:01:54.1]} 29. g4 {[%clk
0:01:09.9]} 29... Ke7 {[%clk 0:01:48.5]} 30. Re1+ {[%clk 0:01:09.2]} 30... Kf8
{[%clk 0:01:47.8]} 31. Red1 {[%clk 0:01:09.3]} 31... g6 {[%clk 0:01:32.8]} 32.
Kg2 {[%clk 0:01:09.2]} 32... h6 {[%clk 0:01:17]} 33. Kg3 {[%clk 0:01:09.1]}
33... Re8 {[%clk 0:00:59.9]} 34. Rxd7 {[%clk 0:01:06.2]} 34... Rxb5 {[%clk
0:00:59.6]} 35. Rd8 {[%clk 0:01:00.9]} 35... h5 {[%clk 0:00:57.3]} 36. Rxe8+
{[%clk 0:01:00.3]} 36... Kxe8 {[%clk 0:00:58.2]} 37. Re1+ {[%clk 0:00:59]} 37...
Kf8 {[%clk 0:00:56.4]} 38. h3 {[%clk 0:00:59.1]} 38... Kg7 {[%clk 0:00:56]} 39.
Re3 {[%clk 0:00:57.3]} 39... Kh6 {[%clk 0:00:54.6]} 40. Ra3 {[%clk 0:00:57.4]}
40... Kg5 {[%clk 0:00:51.9]} 41. h4+ {[%clk 0:00:51.8]} 41... Kf6 {[%clk
0:00:51.2]} 42. Rf3+ {[%clk 0:00:50]} 42... Ke6 {[%clk 0:00:48.7]} 43. g5 {[%clk
0:00:38.5]} 43... Re5 {[%clk 0:00:41.5]} 44. Rf6+ {[%clk 0:00:36.6]} 44... Ke7
{[%clk 0:00:41.5]} 45. Rf3 {[%clk 0:00:37.5]} 45... Re4 {[%clk 0:00:41.7]} 46.
Rf2 {[%clk 0:00:36.3]} 46... Rg4+ {[%clk 0:00:37.9]} 47. Kh3 {[%clk 0:00:36.3]}
47... Ke6 {[%clk 0:00:33.5]} 48. Rf6+ {[%clk 0:00:34.5]} 48... Ke7 {[%clk
0:00:33.4]} 49. Rf3 {[%clk 0:00:35.1]} 49... Ra4 {[%clk 0:00:31.3]} 50. Kg3
{[%clk 0:00:34.4]} 50... Ra5 {[%clk 0:00:31.5]} 51. Rf4 {[%clk 0:00:31.4]} 51...
Ra3+ {[%clk 0:00:30.3]} 52. Kg2 {[%clk 0:00:31.2]} 52... Ra6 {[%clk 0:00:26.2]}
53. Kg3 {[%clk 0:00:30.9]} 53... Ra5 {[%clk 0:00:24.9]} 54. Rf3 {[%clk
0:00:29.7]} 54... Rf5 {[%clk 0:00:23.7]} 55. Re3+ {[%clk 0:00:21.9]} 55... Kd6
{[%clk 0:00:23.3]} 56. Re8 {[%clk 0:00:20.5]} 56... Kd5 {[%clk 0:00:23.2]} 57.
Re1 {[%clk 0:00:20]} 57... Kd4 {[%clk 0:00:21.8]} 58. Re8 {[%clk 0:00:19.9]}
58... Re5 {[%clk 0:00:20.7]} 59. Rf8 {[%clk 0:00:20.1]} 59... Re7 {[%clk
0:00:20.7]} 60. Ra8 {[%clk 0:00:19]} 60... Rc7 {[%clk 0:00:17.9]} 61. Ra4+
{[%clk 0:00:18]} 61... Kd5 {[%clk 0:00:16.5]} 62. Rf4 {[%clk 0:00:17.1]} 62...
Ke5 {[%clk 0:00:16]} 63. Rf2 {[%clk 0:00:16.9]} 63... Ke6 {[%clk 0:00:15.3]} 64.
Rf3 {[%clk 0:00:16.6]} 64... Rc5 {[%clk 0:00:15.3]} 65. Re3+ {[%clk 0:00:15.2]}
65... Re5 {[%clk 0:00:15.5]} 66. Rf3 {[%clk 0:00:15.2]} 66... Rf5 {[%clk
0:00:15.9]} 67. Re3+ {[%clk 0:00:15.6]} 67... Kd5 {[%clk 0:00:16.3]} 68. Re1
{[%clk 0:00:15.8]} 68... Kd4 {[%clk 0:00:14.6]} 69. Re2 {[%clk 0:00:16.1]} 69...
Kd3 {[%clk 0:00:14.5]} 70. Re7 {[%clk 0:00:16.1]} 70... Kd4 {[%clk 0:00:14.3]}
71. Re1 {[%clk 0:00:16.1]} 71... Re5 {[%clk 0:00:14.3]} 72. Rf1 {[%clk 0:00:15]}
72... Re7 {[%clk 0:00:13.9]} 73. Rf6 {[%clk 0:00:14.1]} 73... Kd5 {[%clk
0:00:13]} 74. Rf1 {[%clk 0:00:14.2]} 74... Ke5 {[%clk 0:00:13.1]} 75. Re1+
{[%clk 0:00:14.1]} 75... Kd6 {[%clk 0:00:13.6]} 76. Rd1+ {[%clk 0:00:14.6]}
76... Ke6 {[%clk 0:00:13.2]} 77. Re1+ {[%clk 0:00:14.6]} 77... Kd7 {[%clk
0:00:13.7]} 78. Rd1+ {[%clk 0:00:14.3]} 78... Ke8 {[%clk 0:00:14]} 79. Rf1
{[%clk 0:00:14.9]} 79... Re6 {[%clk 0:00:14.1]} 80. Rf4 {[%clk 0:00:14.6]} 80...
Ke7 {[%clk 0:00:14.6]} 81. Rf3 {[%clk 0:00:14.7]} 81... f5 {[%clk 0:00:14.5]}
82. gxf6+ {[%clk 0:00:14]} 82... Rxf6 {[%clk 0:00:14.8]} 83. Ra3 {[%clk
0:00:14.6]} 83... Rc6 {[%clk 0:00:14]} 84. Rf3 {[%clk 0:00:13.1]} 84... Ke6
{[%clk 0:00:12.5]} 85. Rf1 {[%clk 0:00:12.9]} 85... Rc3+ {[%clk 0:00:12.3]} 86.
Kg2 {[%clk 0:00:13.5]} 86... Rc4 {[%clk 0:00:12.6]} 87. Kg3 {[%clk 0:00:13.4]}
87... Rg4+ {[%clk 0:00:12.8]} 88. Kh3 {[%clk 0:00:13.5]} 88... Ke5 {[%clk
0:00:13.3]} 89. Rf8 {[%clk 0:00:13]} 89... Rf4 {[%clk 0:00:13.2]} 90. Re8+
{[%clk 0:00:12.4]} 90... Kf5 {[%clk 0:00:12.2]} 91. Re1 {[%clk 0:00:11.9]} 91...
Rf3+ {[%clk 0:00:11.4]} 92. Kg2 {[%clk 0:00:11.2]} 92... Kg4 {[%clk 0:00:11]}
93. Rh1 {[%clk 0:00:09.1]} 93... Ra3 {[%clk 0:00:10.3]} 94. Kf2 {[%clk
0:00:05.5]} 94... Ra2+ {[%clk 0:00:09.5]} 95. Ke3 {[%clk 0:00:05.9]} 95... Rg2
{[%clk 0:00:07.9]} 96. Ke4 {[%clk 0:00:05]} 96... Re2+ {[%clk 0:00:07.5]} 97.
Kd3 {[%clk 0:00:05.2]} 97... Re6 {[%clk 0:00:07.1]} 98. Kd4 {[%clk 0:00:05.2]}
98... Kg3 {[%clk 0:00:07.1]} 99. Kd5 {[%clk 0:00:05]} 99... Kg2 {[%clk 0:00:07]}
100. Kxe6 {[%clk 0:00:03.4]} 100... Kxh1 {[%clk 0:00:07.1]} 101. Kf6 {[%clk
0:00:04.1]} 101... Kg2 {[%clk 0:00:07.4]} 102. Kxg6 {[%clk 0:00:04.5]} 102...
Kg3 {[%clk 0:00:07.6]} 103. Kxh5 {[%clk 0:00:05.1]} 103... Kf4 {[%clk
0:00:06.7]} 104. Kg6 {[%clk 0:00:05.6]} 1-0

[Event "Late-Titled-Tuesday-Blitz-September-19-2023"]
[Site "Chess.com"]
[Date "2023.09.19"]
[Round "6"]
[White "dzilleruelo"]
[Black "OYAcosta"]
[Result "0-1"]
[WhiteElo "2316"]
[BlackElo "2181"]
[TimeControl "180+1"]
[EndTime "14:58:55 PDT"]
[Termination "OYAcosta won by resignation"]

1. e4 {[%clk 0:02:52.7]} 1... c6 {[%clk 0:03:00.1]} 2. d4 {[%clk 0:02:52.3]}
2... d5 {[%clk 0:03:00.3]} 3. exd5 {[%clk 0:02:53.2]} 3... cxd5 {[%clk
0:03:00.6]} 4. Bd3 {[%clk 0:02:54.1]} 4... Nc6 {[%clk 0:03:01]} 5. c3 {[%clk
0:02:53.5]} 5... Nf6 {[%clk 0:03:01.5]} 6. h3 {[%clk 0:02:54.1]} 6... Qc7 {[%clk
0:03:01.2]} 7. Nf3 {[%clk 0:02:54.5]} 7... e5 {[%clk 0:03:01.1]} 8. dxe5 {[%clk
0:02:52.3]} 8... Nxe5 {[%clk 0:03:01.8]} 9. O-O {[%clk 0:02:52.7]} 9... Bd6
{[%clk 0:03:01.2]} 10. Nxe5 {[%clk 0:02:44.4]} 10... Bxe5 {[%clk 0:03:01.3]} 11.
f4 {[%clk 0:02:42.5]} 11... Bd6 {[%clk 0:02:59]} 12. Re1+ {[%clk 0:02:41.6]}
12... Be7 {[%clk 0:02:57.7]} 13. Bb5+ {[%clk 0:02:35.3]} 13... Bd7 {[%clk
0:02:57.9]} 14. Qe2 {[%clk 0:02:22.9]} 14... Qc5+ {[%clk 0:02:56]} 15. Be3
{[%clk 0:02:15.3]} 15... Qxb5 {[%clk 0:02:55.1]} 16. Qxb5 {[%clk 0:02:12.5]}
16... Bxb5 {[%clk 0:02:55.5]} 17. Bc5 {[%clk 0:02:13.1]} 17... Ne4 {[%clk
0:02:56]} 18. Nd2 {[%clk 0:02:13]} 18... Bxc5+ {[%clk 0:02:55.3]} 0-1

[Event "Late-Titled-Tuesday-Blitz-September-19-2023"]
[Site "Chess.com"]
[Date "2023.09.19"]
[Round "6"]
[White "jup1978"]
[Black "Qvalda"]
[Result "0-1"]
[WhiteElo "2441"]
[BlackElo "2343"]
[TimeControl "180+1"]
[EndTime "14:59:04 PDT"]
[Termination "Qvalda won by resignation"]

1. e4 {[%clk 0:03:00.9]} 1... e6 {[%clk 0:03:00]} 2. d4 {[%clk 0:03:00.4]} 2...
d5 {[%clk 0:03:00.9]} 3. Nd2 {[%clk 0:03:00.5]} 3... Be7 {[%clk 0:03:00.2]} 4.
g3 {[%clk 0:02:58.1]} 4... dxe4 {[%clk 0:02:55.8]} 5. Nxe4 {[%clk 0:02:53.2]}
5... Nf6 {[%clk 0:02:54]} 6. Nxf6+ {[%clk 0:02:49.7]} 6... Bxf6 {[%clk
0:02:54.9]} 7. Bg2 {[%clk 0:02:49.6]} 7... Qxd4 {[%clk 0:02:52.3]} 8. Qf3 {[%clk
0:02:41]} 8... O-O {[%clk 0:02:50.2]} 9. Ne2 {[%clk 0:02:40.9]} 9... Qb6 {[%clk
0:02:45.7]} 10. O-O {[%clk 0:02:40.5]} 10... Nc6 {[%clk 0:02:39.7]} 11. c3
{[%clk 0:02:40.5]} 11... Ne5 {[%clk 0:02:38.6]} 12. Qe4 {[%clk 0:02:35.4]} 12...
Rb8 {[%clk 0:02:37]} 13. Rb1 {[%clk 0:02:34.3]} 13... Bd7 {[%clk 0:02:35]} 14.
Be3 {[%clk 0:02:33.7]} 14... Qa6 {[%clk 0:02:34.9]} 15. a3 {[%clk 0:02:22.9]}
15... Qxe2 {[%clk 0:02:32.8]} 0-1

[Event "Late-Titled-Tuesday-Blitz-September-19-2023"]
[Site "Chess.com"]
[Date "2023.09.19"]
[Round "6"]
[White "Hirna2005"]
[Black "ValeriyGrinev"]
[Result "0-1"]
[WhiteElo "2366"]
[BlackElo "2559"]
[TimeControl "180+1"]
[EndTime "14:59:42 PDT"]
[Termination "ValeriyGrinev won by checkmate"]

1. e4 {[%clk 0:03:00.9]} 1... c5 {[%clk 0:03:00.9]} 2. c3 {[%clk 0:03:00.8]}
2... d5 {[%clk 0:03:00.4]} 3. exd5 {[%clk 0:03:00.9]} 3... Qxd5 {[%clk
0:02:54.4]} 4. Nf3 {[%clk 0:03:01.5]} 4... Nc6 {[%clk 0:02:52.2]} 5. d4 {[%clk
0:03:00.2]} 5... Bf5 {[%clk 0:02:50.7]} 6. Na3 {[%clk 0:02:57.1]} 6... cxd4
{[%clk 0:02:48.2]} 7. Be2 {[%clk 0:02:45.2]} 7... d3 {[%clk 0:02:45.9]} 8. Be3
{[%clk 0:02:24.3]} 8... O-O-O {[%clk 0:02:39.5]} 9. Bf1 {[%clk 0:02:24]} 9... e5
{[%clk 0:02:36.9]} 10. Qa4 {[%clk 0:02:14.6]} 10... a6 {[%clk 0:02:33.5]} 11.
Bb6 {[%clk 0:02:03.4]} 11... Bxa3 {[%clk 0:02:24.7]} 12. Qxa3 {[%clk 0:01:55]}
12... d2+ {[%clk 0:02:21.7]} 13. Kd1 {[%clk 0:01:54.8]} 13... Bc2+ {[%clk
0:02:21]} 14. Kxc2 {[%clk 0:01:52.8]} 14... d1=Q+ {[%clk 0:02:20.4]} 15. Rxd1
{[%clk 0:01:52.2]} 15... Qxd1# {[%clk 0:02:21.3]} 0-1

[Event "Late-Titled-Tuesday-Blitz-September-19-2023"]
[Site "Chess.com"]
[Date "2023.09.19"]
[Round "6"]
[White "rdarruda"]
[Black "Veleamater"]
[Result "1-0"]
[WhiteElo "2496"]
[BlackElo "2323"]
[TimeControl "180+1"]
[EndTime "15:00:01 PDT"]
[Termination "rdarruda won by resignation"]

1. d4 {[%clk 0:02:47.3]} 1... d6 {[%clk 0:03:00.9]} 2. e4 {[%clk 0:02:46.5]}
2... g6 {[%clk 0:03:01.1]} 3. Nc3 {[%clk 0:02:46.8]} 3... Bg7 {[%clk 0:02:59.4]}
4. Nf3 {[%clk 0:02:46.9]} 4... Nf6 {[%clk 0:03:00]} 5. Bg5 {[%clk 0:02:46.6]}
5... O-O {[%clk 0:03:00.4]} 6. Qd2 {[%clk 0:02:46.6]} 6... Nc6 {[%clk
0:02:59.7]} 7. d5 {[%clk 0:02:46.4]} 7... Ne5 {[%clk 0:02:59.3]} 8. Nxe5 {[%clk
0:02:46.5]} 8... dxe5 {[%clk 0:03:00.2]} 9. O-O-O {[%clk 0:02:46.3]} 9... Ne8
{[%clk 0:03:00.2]} 10. Bh6 {[%clk 0:02:45.5]} 10... a6 {[%clk 0:03:00.4]} 11. h4
{[%clk 0:02:44.7]} 11... f5 {[%clk 0:02:57.6]} 12. h5 {[%clk 0:02:41.7]} 12...
f4 {[%clk 0:02:58]} 13. Bxg7 {[%clk 0:02:41.2]} 13... Nxg7 {[%clk 0:02:56.9]}
14. hxg6 {[%clk 0:02:40.8]} 14... hxg6 {[%clk 0:02:56.6]} 15. f3 {[%clk
0:02:38.9]} 15... Ne8 {[%clk 0:02:51.4]} 16. Qf2 {[%clk 0:02:36.1]} 16... e6
{[%clk 0:02:47.3]} 17. dxe6 {[%clk 0:02:22.4]} 17... Qg5 {[%clk 0:02:44.3]} 18.
Bc4 {[%clk 0:02:16.5]} 18... Kg7 {[%clk 0:02:44.4]} 19. Qc5 {[%clk 0:01:49.9]}
19... Qxg2 {[%clk 0:02:30.7]} 20. Qe7+ {[%clk 0:01:41.2]} 1-0

[Event "Late-Titled-Tuesday-Blitz-September-19-2023"]
[Site "Chess.com"]
[Date "2023.09.19"]
[Round "6"]
[White "AyMitecK"]
[Black "Mikasinski"]
[Result "1-0"]
[WhiteElo "2528"]
[BlackElo "2610"]
[TimeControl "180+1"]
[EndTime "15:00:32 PDT"]
[Termination "AyMitecK won by resignation"]

1. e4 {[%clk 0:03:00.9]} 1... c5 {[%clk 0:02:59.8]} 2. Nf3 {[%clk 0:03:01.2]}
2... d6 {[%clk 0:03:00.4]} 3. Bb5+ {[%clk 0:03:01.4]} 3... Bd7 {[%clk
0:03:00.7]} 4. Bxd7+ {[%clk 0:03:02]} 4... Qxd7 {[%clk 0:03:01.6]} 5. O-O {[%clk
0:03:02.3]} 5... Nc6 {[%clk 0:03:02.5]} 6. Re1 {[%clk 0:03:02.6]} 6... Nf6
{[%clk 0:03:03.2]} 7. c3 {[%clk 0:03:03.1]} 7... e6 {[%clk 0:03:03.8]} 8. d4
{[%clk 0:03:03.6]} 8... cxd4 {[%clk 0:03:04.7]} 9. cxd4 {[%clk 0:03:04.2]} 9...
d5 {[%clk 0:03:05.6]} 10. e5 {[%clk 0:03:04.9]} 10... Ne4 {[%clk 0:03:06.3]} 11.
Nc3 {[%clk 0:03:05.6]} 11... Nxc3 {[%clk 0:03:06.9]} 12. bxc3 {[%clk 0:03:06.5]}
12... Be7 {[%clk 0:03:07.3]} 13. Re3 {[%clk 0:03:07.4]} 13... Na5 {[%clk
0:03:06.5]} 14. Ne1 {[%clk 0:03:08.3]} 14... Nc4 {[%clk 0:03:06.9]} 15. Rg3
{[%clk 0:03:09.2]} 15... g6 {[%clk 0:03:06.5]} 16. Bh6 {[%clk 0:03:09.8]} 16...
Rc8 {[%clk 0:03:04]} 17. Qg4 {[%clk 0:03:04.7]} 17... b5 {[%clk 0:02:56.9]} 18.
Rf3 {[%clk 0:03:03.7]} 18... Bf8 {[%clk 0:02:55.1]} 19. Bg5 {[%clk 0:03:03.2]}
19... h6 {[%clk 0:02:55.4]} 20. Bf6 {[%clk 0:03:00.3]} 20... h5 {[%clk 0:02:56]}
21. Qf4 {[%clk 0:02:59.9]} 21... Bh6 {[%clk 0:02:55.8]} 22. Bg5 {[%clk
0:02:57.8]} 22... Bxg5 {[%clk 0:02:55.8]} 23. Qxg5 {[%clk 0:02:58.7]} 23... Qe7
{[%clk 0:02:56.1]} 24. Qf4 {[%clk 0:02:56.2]} 24... g5 {[%clk 0:02:52.1]} 25.
Qc1 {[%clk 0:02:54.8]} 25... g4 {[%clk 0:02:51.8]} 26. Rg3 {[%clk 0:02:52.7]}
26... Kd7 {[%clk 0:02:48]} 27. Nd3 {[%clk 0:02:50.6]} 27... Kc7 {[%clk
0:02:46.3]} 28. a4 {[%clk 0:02:50.3]} 28... Rcg8 {[%clk 0:02:38.4]} 29. axb5
{[%clk 0:02:49]} 29... Kb8 {[%clk 0:02:38.9]} 30. Nc5 {[%clk 0:02:47.2]} 30...
h4 {[%clk 0:02:38.8]} 31. Rd3 {[%clk 0:02:46.5]} 31... g3 {[%clk 0:02:35.3]} 32.
fxg3 {[%clk 0:02:42.8]} 32... hxg3 {[%clk 0:02:34.7]} 33. Rxg3 {[%clk
0:02:40.4]} 33... Rxg3 {[%clk 0:02:30.2]} 34. hxg3 {[%clk 0:02:41.3]} 34... Rg8
{[%clk 0:02:22]} 35. Qh6 {[%clk 0:02:36.4]} 35... Nxe5 {[%clk 0:02:17]} 36. Qf4
{[%clk 0:02:31.5]} 36... f6 {[%clk 0:02:14.3]} 37. Na6+ {[%clk 0:02:29.6]} 37...
Kb7 {[%clk 0:02:12.5]} 38. dxe5 {[%clk 0:02:29.1]} 38... f5 {[%clk 0:02:12.4]}
39. Qe3 {[%clk 0:02:24.5]} 39... Rg4 {[%clk 0:02:08]} 40. Nb4 {[%clk 0:02:23.4]}
40... d4 {[%clk 0:02:07.3]} 41. Qf3+ {[%clk 0:02:22]} 41... Kc8 {[%clk 0:02:06]}
42. Qa8+ {[%clk 0:02:20.1]} 1-0

[Event "Late-Titled-Tuesday-Blitz-September-19-2023"]
[Site "Chess.com"]
[Date "2023.09.19"]
[Round "6"]
[White "SlipperySpeedster"]
[Black "temus_galaktionov"]
[Result "0-1"]
[WhiteElo "2643"]
[BlackElo "2838"]
[TimeControl "180+1"]
[EndTime "15:00:44 PDT"]
[Termination "temus_galaktionov won by resignation"]

1. d4 {[%clk 0:03:00.9]} 1... c6 {[%clk 0:03:00.9]} 2. Nf3 {[%clk 0:02:56.8]}
2... d6 {[%clk 0:03:01.8]} 3. Bf4 {[%clk 0:02:53.3]} 3... g6 {[%clk 0:03:02.7]}
4. Nc3 {[%clk 0:02:50.4]} 4... Bg7 {[%clk 0:03:03]} 5. e4 {[%clk 0:02:50.7]}
5... Nd7 {[%clk 0:03:02.6]} 6. h4 {[%clk 0:02:49.7]} 6... e5 {[%clk 0:03:02.1]}
7. dxe5 {[%clk 0:02:47.6]} 7... dxe5 {[%clk 0:03:03]} 8. Bg5 {[%clk 0:02:47.4]}
8... Ngf6 {[%clk 0:03:02.6]} 9. h5 {[%clk 0:02:47]} 9... Qa5 {[%clk 0:02:59]}
10. h6 {[%clk 0:02:42.2]} 10... Bf8 {[%clk 0:02:59.2]} 11. Qd2 {[%clk
0:02:41.4]} 11... Bb4 {[%clk 0:02:58.9]} 12. Bd3 {[%clk 0:02:30.2]} 12... O-O
{[%clk 0:02:57.4]} 13. O-O-O {[%clk 0:02:29.6]} 13... Ng4 {[%clk 0:02:51.7]} 14.
Kb1 {[%clk 0:02:26.8]} 14... Nc5 {[%clk 0:02:51.2]} 15. Ne1 {[%clk 0:02:13.2]}
15... Bxc3 {[%clk 0:02:48.4]} 16. bxc3 {[%clk 0:02:07.5]} 16... Na4 {[%clk
0:02:28.7]} 17. Be7 {[%clk 0:02:01.3]} 17... Nxc3+ {[%clk 0:02:19.6]} 18. Kb2
{[%clk 0:01:59.4]} 18... Nxd1+ {[%clk 0:02:17.5]} 19. Qxd1 {[%clk 0:01:59.5]}
19... Re8 {[%clk 0:02:13.6]} 20. Bg5 {[%clk 0:01:53.6]} 20... Be6 {[%clk
0:02:12.5]} 21. a3 {[%clk 0:01:48.8]} 21... f6 {[%clk 0:02:07.2]} 22. Bc4 {[%clk
0:01:40]} 22... Bxc4 {[%clk 0:02:02.5]} 23. Qxg4 {[%clk 0:01:40.1]} 23... fxg5
{[%clk 0:02:02.3]} 24. Qd7 {[%clk 0:01:40.2]} 24... Bf7 {[%clk 0:02:01.5]} 25.
Qd6 {[%clk 0:01:40.3]} 25... Qd8 {[%clk 0:02:01.2]} 0-1

[Event "Late-Titled-Tuesday-Blitz-September-19-2023"]
[Site "Chess.com"]
[Date "2023.09.19"]
[Round "6"]
[White "IlanSchnaider"]
[Black "Chessdreamer2020"]
[Result "1-0"]
[WhiteElo "2763"]
[BlackElo "2539"]
[TimeControl "180+1"]
[EndTime "15:01:03 PDT"]
[Termination "IlanSchnaider won by resignation"]

1. e4 {[%clk 0:03:00.9]} 1... d6 {[%clk 0:03:00.2]} 2. d4 {[%clk 0:02:59.1]}
2... Nf6 {[%clk 0:03:00.5]} 3. Nc3 {[%clk 0:02:59.8]} 3... c6 {[%clk 0:03:00.9]}
4. f4 {[%clk 0:02:59.7]} 4... d5 {[%clk 0:03:01]} 5. e5 {[%clk 0:02:57.3]} 5...
Ng8 {[%clk 0:03:01.5]} 6. Bd3 {[%clk 0:02:54]} 6... h5 {[%clk 0:03:02.1]} 7. f5
{[%clk 0:02:54.1]} 7... e6 {[%clk 0:02:50.9]} 8. fxe6 {[%clk 0:02:51.5]} 8...
Bxe6 {[%clk 0:02:45.2]} 9. Nf3 {[%clk 0:02:50.1]} 9... Be7 {[%clk 0:02:25.2]}
10. Ne2 {[%clk 0:02:46.5]} 10... g5 {[%clk 0:02:16.9]} 11. h4 {[%clk 0:02:43]}
11... gxh4 {[%clk 0:02:12.3]} 12. Nf4 {[%clk 0:02:40.2]} 12... Bg4 {[%clk
0:02:09.3]} 13. Be3 {[%clk 0:02:40.3]} 13... Nh6 {[%clk 0:02:02.2]} 14. e6
{[%clk 0:02:38.3]} 14... fxe6 {[%clk 0:01:37.8]} 15. Ng6 {[%clk 0:02:30.4]}
15... Rg8 {[%clk 0:01:32.6]} 16. Bxh6 {[%clk 0:02:29.3]} 16... h3 {[%clk
0:01:22.1]} 17. gxh3 {[%clk 0:02:24.9]} 17... Bf5 {[%clk 0:01:16.8]} 18. Bxf5
{[%clk 0:02:23.4]} 18... exf5 {[%clk 0:01:17.7]} 19. Nxe7 {[%clk 0:02:21.9]}
19... Qxe7+ {[%clk 0:01:17.8]} 20. Qe2 {[%clk 0:02:17.7]} 20... Qxe2+ {[%clk
0:01:13.3]} 21. Kxe2 {[%clk 0:02:18.6]} 21... Rg2+ {[%clk 0:01:12.9]} 22. Kd3
{[%clk 0:02:18.6]} 22... Nd7 {[%clk 0:01:12]} 23. Rhg1 {[%clk 0:02:18]} 23...
Rxg1 {[%clk 0:01:08.5]} 24. Rxg1 {[%clk 0:02:18.9]} 24... Kf7 {[%clk 0:01:08.1]}
25. Rg7+ {[%clk 0:02:18.1]} 25... Ke6 {[%clk 0:01:07.8]} 26. Ng5+ {[%clk
0:02:18.6]} 26... Kd6 {[%clk 0:01:08.2]} 27. Nf7+ {[%clk 0:02:19.2]} 27... Kc7
{[%clk 0:01:08]} 28. Ne5 {[%clk 0:02:19.5]} 1-0

[Event "Late-Titled-Tuesday-Blitz-September-19-2023"]
[Site "Chess.com"]
[Date "2023.09.19"]
[Round "6"]
[White "Chessbard1972"]
[Black "MathiasWomacka"]
[Result "0-1"]
[WhiteElo "2365"]
[BlackElo "2552"]
[TimeControl "180+1"]
[EndTime "15:01:04 PDT"]
[Termination "MathiasWomacka won by resignation"]

1. d4 {[%clk 0:03:00.9]} 1... Nf6 {[%clk 0:02:58.8]} 2. c4 {[%clk 0:03:00.3]}
2... e6 {[%clk 0:02:57.9]} 3. Nf3 {[%clk 0:02:59.4]} 3... Bb4+ {[%clk
0:02:56.9]} 4. Nbd2 {[%clk 0:02:57.4]} 4... O-O {[%clk 0:02:56]} 5. a3 {[%clk
0:02:56.7]} 5... Be7 {[%clk 0:02:56.3]} 6. e4 {[%clk 0:02:55.7]} 6... d5 {[%clk
0:02:56.8]} 7. e5 {[%clk 0:02:55.7]} 7... Nfd7 {[%clk 0:02:55.8]} 8. Qc2 {[%clk
0:02:56.2]} 8... c5 {[%clk 0:02:52.6]} 9. cxd5 {[%clk 0:02:54.8]} 9... exd5
{[%clk 0:02:52.1]} 10. h4 {[%clk 0:02:51.3]} 10... Nc6 {[%clk 0:02:34.3]} 11.
Bd3 {[%clk 0:02:44]} 11... h6 {[%clk 0:02:30.7]} 12. b3 {[%clk 0:02:33.5]} 12...
cxd4 {[%clk 0:02:27.7]} 13. b4 {[%clk 0:02:25.6]} 13... Ndxe5 {[%clk 0:02:25.5]}
14. Ng5 {[%clk 0:02:19.3]} 14... Bxg5 {[%clk 0:02:10.7]} 15. hxg5 {[%clk
0:02:16.9]} 15... Qxg5 {[%clk 0:02:11.6]} 16. Bb2 {[%clk 0:02:00.2]} 16... Nxd3+
{[%clk 0:02:03.8]} 17. Qxd3 {[%clk 0:01:59.6]} 17... Re8+ {[%clk 0:02:03.3]} 18.
Kf1 {[%clk 0:01:58]} 18... Bf5 {[%clk 0:02:02.2]} 19. Qb3 {[%clk 0:01:49.2]}
19... Qxd2 {[%clk 0:01:58.8]} 20. Rd1 {[%clk 0:01:43]} 20... Bc2 {[%clk
0:01:43.4]} 21. Rxd2 {[%clk 0:01:40.1]} 21... Bxb3 {[%clk 0:01:43.3]} 22. Bxd4
{[%clk 0:01:38.8]} 22... Bc4+ {[%clk 0:01:40.3]} 23. Kg1 {[%clk 0:01:38.7]}
23... Re1+ {[%clk 0:01:39.9]} 24. Kh2 {[%clk 0:01:39.2]} 24... Rxh1+ {[%clk
0:01:40.3]} 25. Kxh1 {[%clk 0:01:39.6]} 25... Nxd4 {[%clk 0:01:40.5]} 26. Rxd4
{[%clk 0:01:39.9]} 26... Re8 {[%clk 0:01:40.7]} 0-1